{"text_format":"1","workbook":"xlsx","n_sheets":8,"sheets":["MENU","KPiR","dzial_roln","karta_pod","rycz_ew","ZAGRANICA","zmiana_formy_opod","Arkusz2"],"not_rendered":{"charts":0,"images":1,"macros":1,"external_links":0,"defined_names":9,"comments":0,"pivot_tables":0},"unopened":[],"bounds":{"document_bytes":16777216,"sheet_cells":100000,"rows_first":2000,"rows_last":500,"rows_between":2000,"halvings":0,"cell_chars":16384,"cell_head_chars":4096},"cells_cut":0,"cells_raw":0,"read":"whole","date_system":"1900"}

{"sheet":"MENU","index":0,"n_rows":19,"n_cols":13,"rows_kept":19,"cut":false,"hidden":false,"merged":[[3,1,3,11],[4,1,5,11]]}
[]
[]
[]
[]
[]
[]
[]
[null,"* jednoosobowej działalności gospodarczej w zależności od formy opodatkowania:"]
[null,null,null,null,null,null,null,null,null,null,null,null,"Instrukcja:"]
[null,null,null,null,null,null,null,null,null,null,null,null,"Aby kalkulator działał poprawnie należy odblokować makra, modyfikując właściwości pliku w następujący sposób:"]
[null,null,null,null,null,null,null,null,null,null,null,null,"1. Pobierz plik z maila na komputer i przejdź do folderu, w którym zapisałeś plik."]
[null,null,null,null,null,null,null,null,null,null,null,null,"2. Kliknij na plik prawym przyciskiem myszy i wybierz „Właściwości”."]
[null,null,null,null,null,null,null,null,null,null,null,null,"3. Na dole karty „Ogólne” zaznacz checkbox „Odblokuj” i wybierz „Zastosuj”."]
[null,null,null,null,null,null,null,null,null,null,null,null,"4.Uruchamiamy kalkulator. W pliku u góry widoczny będzie żółty pasek z komunikatem gdzie należy kliknąć „Włącz Zawartość”"]
[]
[]
[]
[]
[null,"* działalności rolniczej",null,null,null,null,null,null,"* dochodu w obcej walucie"]

{"sheet":"KPiR","index":1,"n_rows":29,"n_cols":17,"rows_kept":29,"cut":false,"hidden":false,"merged":[[13,5,13,11],[14,5,14,11],[16,14,16,15],[12,14,12,15],[19,5,19,11],[19,12,19,14],[20,9,21,11],[17,15,23,17],[20,12,21,14],[3,5,4,16],[15,5,15,11],[16,5,16,11],[12,12,12,13],[13,12,13,13],[13,14,13,15],[14,12,14,13],[15,12,15,13],[14,14,14,15],[15,14,15,15],[16,12,16,13],[8,5,8,7],[8,8,8,9]]}
[]
[]
[]
[null,null,null,null,null,"Kalkulator dochodu - księga przychodów i rozchodów"]
[]
[]
[]
[]
[null,null,null,null,null,"Forma opodatkowania:",null,null,"Wybierz forme opodatkowania"]
[]
[]
[]
[null,null,null,null,null,null,null,null,null,null,null,null,"OBECNY ROK",null,"POPRZEDNI ROK"]
[null,null,null,null,null,"Liczba miesięcy",null,null,null,null,null,null,0,null,0]
[null,null,null,null,null,"Przychód:\nPIT za poprzedni rok: rubryka Przychód\n\nKPIR: suma przychodu z kolumn Wartość sprzedanych towarów i usług + Pozostałe przychody",null,null,null,null,null,null,0,null,0]
[null,null,null,null,null,"Koszty łącznie:\nPIT za poprzedni rok: rubryka Koszty uzyskania przychodów\n\nKPIR: suma kolumn Zakup towarów handlowych i materiałów wg cen zakupu + Koszty uboczne zakupu + Wydatki razem(koszty, w tym wynagrodzenia w gotówce i naturze, pozostałe wydatki) ",null,null,null,null,null,null,0,null,0]
[null,null,null,null,null,"Dochód Brutto",null,null,null,null,null,null,{"$f":"M15-M16","v":0},null,{"$f":"O15-O16","v":0}]
[null,null,null,null,null,"Uwaga: nie dodajemy przy KPIR remanentu początkowego i końcowego.",null,null,null,null,null,null,null,null,null,{"$f":"IF(M14+O14<6,\"\",IF(M14+O14<9,\"W celu potencjalnego zwiększenia maksymalnej kwoty - należy wydłużyć okres dokumentowanego dochodu do min. 9 m-cy\",\"\"))","v":""}]
[]
[null,null,null,null,null,"Średniomiesięczny dochód netto",null,null,null,null,null,null,{"$f":"IF(F25,\"BRAK DANYCH\",IF(M14+O14<6,\"BRAK DANYCH\",IFERROR(IF(F24=1,IF(OR(M14>=9,O14<1),Q25/M14,IF((M14+O14)<12,(Q25+Q27)/(M14+O14),(Q25+Q27/O14*(12-M14))/12)),IF(F24=2,IF(OR(M14>=9,O14<1),Q26/M14,IF((M14+O14)<12,(Q26+Q28)/(M14+O14),(Q26+Q28/O14*(12-M14))/12)),\"\")),0)))","v":"BRAK DANYCH"}]
[null,null,null,null,null,null,null,null,null,"Maksymalna kwota dla wybranego okresu udokumentowania dochodu",null,null,{"$f":"IF(M20=\"BRAK DANYCH\",\"BRAK DANYCH\",IF(M14+O14<9,IF(Q29>50000,50000,Q29),IF(M14+O14<9,50000,\"Brak ograniczenia\")))","v":"BRAK DANYCH"}]
[]
[]
[null,null,null,null,"liniowy 1, ogólne 2, brak 0",{"$f":"IF($I$9=\"Podatek liniowy\",1,IF($I$9=\"Zasady ogólne\",2,0))","v":0}]
[null,null,null,null,"forma opodatkowania?",{"$f":"IF(I9=\"Wybierz forme opodatkowania\",TRUE,FALSE)","v":true},null,null,null,null,null,null,null,null,null,"dochód netto podatek liniowy rok bieżący",{"$f":"IF(M17>0,M17*0.81,M17)","v":0}]
[null,null,null,null,"dochód brak?",{"$f":"IF(M20=\"Brak danych\",TRUE,FALSE)","v":true},null,null,null,null,null,null,null,null,null,"dochód netto zasady ogólne rok bieżący",{"$f":"IF(M17<=Arkusz2!C18,M17-MAX(M17*0.18-Arkusz2!C17,0),M17-(Arkusz2!C19+(M17-Arkusz2!C18)*0.32))","v":0}]
[null,null,null,null,"brak ograniczenia?",{"$f":"IF(M21=\"Brak ograniczenia\",TRUE,FALSE)","v":false},null,null,null,null,null,null,null,null,null,"dochód netto liniowy rok ubiegły",{"$f":"IF(O17>0,O17*0.81,O17)","v":0}]
[null,null,null,null,null,null,null,null,null,null,null,null,null,null,null,"dochód netto zasady ogólne rok ubiegły",{"$f":"IF(O17<=Arkusz2!C18,O17-MAX(O17*0.18-Arkusz2!C17,0),O17-(Arkusz2!C19+(O17-Arkusz2!C18)*0.32))","v":0}]
[null,null,null,null,null,null,null,null,null,null,null,null,null,null,null,"sześciokrotność dochodu",{"$f":"IF(M20=\"BRAK DANYCH\",\"BRAK DANYCH\",M20*6)","v":"BRAK DANYCH"}]

{"sheet":"dzial_roln","index":2,"n_rows":23,"n_cols":15,"rows_kept":23,"cut":false,"hidden":false,"merged":[[3,5,4,15],[16,5,16,12],[14,5,14,12],[8,5,8,10],[18,14,18,15],[10,14,10,15],[11,14,11,15],[12,14,12,15],[14,14,14,15],[16,14,16,15],[13,14,13,15],[15,14,15,15],[17,14,17,15],[6,5,6,7],[6,8,6,10],[21,14,21,15],[22,14,22,15],[19,14,19,15],[9,14,9,15],[17,5,17,12],[11,5,11,12],[12,5,12,12],[18,5,18,12],[19,5,20,12]]}
[]
[null,null,null,null,{"$f":"IF($I$7=\"Ilość hektarów\",1,IF($I$7=\"Suma faktur\",2,0))","v":0}]
[]
[null,null,null,null,null,"Kalkulator - działalność rolnicza"]
[]
[null,null,null,null,{"$f":"IF(I7=\"Ilość hektarów\",1,0)","v":0}]
[null,null,null,null,{"$f":"IF(I7=\"Suma faktur\",1,0)","v":0},"Wariant wyliczenia:",null,null,"Wariant wyliczenia"]
[null,null,null,null,null,{"$f":"IF(E2=0,\"\",\"Poniżej wpisujemy:\")","v":""}]
[null,null,null,null,null,{"$f":"IF(E2=1,\"1) Liczbę hektarów wraz z liczbą właścicieli\",IF(E2=2,\"1) Sumę rachunków/faktur za ostatnie 12 m-cy\",\"\"))","v":""}]
[null,null,null,null,null,{"$f":"IF(E2=0,\"\",\"2) Sumę dochodu z decyzji ARiMR (opcjonalnie)\")","v":""}]
[null,null,null,null,null,null,null,null,null,null,null,null,null,"OBECNY ROK"]
[null,null,null,null,null,"Liczba hektarów",null,null,null,null,null,null,null,0]
[null,null,null,null,null,"Liczba właścicieli",null,null,null,null,null,null,null,1]
[]
[null,null,null,null,null,"Suma rachunków/ faktur za ostatnie 12 m-cy w zł",null,null,null,null,null,null,null,0]
[]
[null,null,null,null,null,"Suma dochodu z decyzji ARiMR",null,null,null,null,null,null,null,0]
[]
[null,null,null,null,null,{"$f":"IF(I7=\"Wariant wyliczenia\",\"Wybierz wariant wyliczenia\",\"Średniomiesięczny dochód netto\")","v":"Wybierz wariant wyliczenia"},null,null,null,null,null,null,null,{"$f":"IF(I7=\"Wariant wyliczenia\",\"BRAK DANYCH\",IF(N12+N15=0,\"BRAK DANYCH\",IF(E2=1,O22,O23)))","v":"BRAK DANYCH"}]
[]
[]
[null,null,null,null,null,null,null,null,null,null,null,null,null,null,{"$f":"IF(N12=0,\"BRAK DANYCH\",(N17/12)+(N12*5429)/(12*N13))","v":"BRAK DANYCH"}]
[null,null,null,null,null,null,null,null,null,null,null,null,null,null,{"$f":"IF(N15=0,\"BRAK DANYCH\",(N17/12)+(N15*0.53/12))","v":"BRAK DANYCH"}]

{"sheet":"karta_pod","index":3,"n_rows":16,"n_cols":14,"rows_kept":16,"cut":false,"hidden":false,"merged":[[3,5,4,16],[15,5,15,12],[15,13,15,15],[11,5,11,12],[12,5,12,12],[10,13,10,15],[11,13,11,15],[12,13,12,15]]}
[]
[]
[]
[null,null,null,null,null,"Kalkulator dochodu - karta podatkowa"]
[]
[]
[]
[]
[]
[]
[null,null,null,null,null,null,null,null,null,null,null,null,null,"OBECNY ROK"]
[null,null,null,null,null,"Miesięczna kwota podatku wykazana w karcie podatkowej",null,null,null,null,null,null,null,0]
[null,null,null,null,null,"Średni miesięczny dochód netto deklarowany przez klienta",null,null,null,null,null,null,null,0]
[null,null,null,null,null,null,null,null,null,null,null,null,null,{"$f":"ISNUMBER(N12+N13)","v":true}]
[]
[null,null,null,null,null,"Średniomiesięczny dochód netto",null,null,null,null,null,null,null,{"$f":"IF(N14,IF(N12=0,\"BRAK DANYCH\",MIN(N12*8,N13)),\"BŁĘDNE DANE\")","v":"BRAK DANYCH"}]

{"sheet":"rycz_ew","index":4,"n_rows":32,"n_cols":15,"rows_kept":32,"cut":false,"hidden":false,"merged":[[28,13,31,14],[26,13,27,13],[3,5,4,14],[11,5,11,11],[22,5,22,11],[12,5,21,10],[26,9,27,12]]}
[]
[]
[]
[null,null,null,null,null,"Kalkulator dochodu - ryczałt ewidencjonowany"]
[]
[]
[null,null,null,null,null,"* dotyczy branż usługowych oraz transportu przy stawce ryczałtu 5,5%"]
[]
[]
[]
[null,null,null,null,null,null,null,null,null,null,null,null,"OBECNY ROK","POPRZEDNI ROK"]
[null,null,null,null,null,"Liczba miesięcy",null,null,null,null,null,null,0,0,"rentowność"]
[null,null,null,null,null,"kwota przychodu",null,null,null,null,null,0.03,0,0,0.2]
[null,null,null,null,null,null,null,null,null,null,null,5.5E-2,0,0,0.2]
[null,null,null,null,null,null,null,null,null,null,null,"5,50%*",0,0,0.35]
[null,null,null,null,null,null,null,null,null,null,null,8.5000000000000006E-2,0,0,0.35]
[null,null,null,null,null,null,null,null,null,null,null,0.1,0,0,0.2]
[null,null,null,null,null,null,null,null,null,null,null,0.12,0,0,0.5]
[null,null,null,null,null,null,null,null,null,null,null,0.125,0,0,0.35]
[null,null,null,null,null,null,null,null,null,null,null,0.14000000000000001,0,0,0.5]
[null,null,null,null,null,null,null,null,null,null,null,0.15,0,0,0.35]
[null,null,null,null,null,null,null,null,null,null,null,0.17,0,0,0.5]
[null,null,null,null,null,"Przychód łącznie",null,null,null,null,null,null,{"$f":"M13+M14+M15+M16+M17+M18+M19+M20+M21+M22","v":0},{"$f":"N13+N14+N15+N16+N17+N18+N19+N20+N21+N22","v":0}]
[null,null,null,null,null,null,null,null,null,null,null,"dochód netto",{"$f":"IF(M12= 0, 0,((M13-(M13*$L$13))*$O$13)+((M14-(M14*$L$14))*$O$14)+((M15-(M15*5.5%))*$O$15)+((M16-(M16*$L$16))*$O$16)+((M17-(M17*$L$17))*$O$17)+((M18-(M18*$L$18))*$O$18)+((M19-(M19*$L$19))*$O$19)+((M20-(M20*$L$20))*$O$20)+((M21-(M21*$L$21))*$O$21)+((M22-(M22*$L$22))*$O$22))","v":0},{"$f":"((N13-(N13*$L$13))*$O$13)+((N14-(N14*$L$14))*$O$14)+((N15-(N15*5.5%))*$O$15)+((N16-(N16*$L$16))*$O$16)+((N17-(N17*$L$17))*$O$17)+((N18-(N18*$L$18))*$O$18)+((N19-(N19*$L$19))*$O$19)+((N20-(N20*$L$20))*$O$20)+((N21-(N21*$L$21))*$O$21)+((N22-(N22*$L$22))*$O$22)","v":0}]
[null,null,null,null,null,null,null,null,null,null,null,"d. netto w x-mcach roku ub",null,{"$f":"(N24/N12)*(12-M12)","v":{"$error":"#DIV/0!"}}]
[null,null,null,null,null,"Średniomiesięczny dochód netto",null,null,null,null,null,null,null,{"$f":"IF(M12+N12<6,\"Brak danych\",IF(OR(M12>=9,N12<1),M24/M12,(M24+N25)/12))","v":"Brak danych"}]
[null,null,null,null,null,null,null,null,null,"Maksymalna kwota dla wybranego okresu udokumentowania dochodu",null,null,null,{"$f":"IF(N26=\"BRAK DANYCH\",\"BRAK DANYCH\",IF(M12+N12<9,IF(F32>50000,50000,F32),IF(M12+N12<9,50000,\"Brak ograniczenia\")))","v":"BRAK DANYCH"}]
[null,null,null,null,"oferta przycięta?",{"$f":"IF(LEFT(N29,1)=\"W\",TRUE,FALSE)","v":false}]
[null,null,null,null,"brak ograniczenia",{"$f":"IF(N27=\"Brak ograniczenia\",TRUE,FALSE)","v":false},null,null,null,null,null,null,null,{"$f":"IF(M12+N12<6,\"\",IF(M12+N12<9,\"W celu potencjalnego zwiększenia maksymalnej kwoty - należy wydłużyć okres dokumentowanego dochodu do min. 9 m-cy\",\"\"))","v":""}]
[null,null,null,null,"poniżej 6M?",{"$f":"IF(M12+N12<6,TRUE,FALSE)","v":true}]
[null,null,null,null,"którykolwiek z powyższych",{"$f":"IF(OR(F30=1,F29=1),TRUE,FALSE)","v":false}]
[null,null,null,null,"sześciokrotność dochodu",{"$f":"IF(N26=\"BRAK DANYCH\",\"BRAK DANYCH\",N26*6)","v":"BRAK DANYCH"}]

{"sheet":"ZAGRANICA","index":5,"n_rows":20,"n_cols":15,"rows_kept":20,"cut":false,"hidden":false,"merged":[[25,7,25,9],[19,13,20,15],[19,7,20,12],[2,7,3,16],[10,14,10,15],[11,14,11,15],[12,14,12,15],[15,14,15,15],[10,7,10,13],[11,7,11,13],[12,7,12,13],[15,7,15,13],[6,7,7,15]]}
[]
[]
[null,null,null,null,null,null,null,"Kalkulator - Zagranica"]
[]
[]
[]
[null,null,null,null,null,null,null,"Wprowadź 3 ostatnie wynagrodzenia Klienta w OBCEJ WALUCIE:"]
[]
[]
[]
[null,null,null,null,null,null,null,"Wynagrodzenie za I miesiąc",null,null,null,null,null,null,0]
[null,null,null,null,null,null,null,"Wynagrodzenie za II miesiąc",null,null,null,null,null,null,0]
[null,null,null,null,null,null,null,"Wynagrodzenie za III miesiąc",null,null,null,null,null,null,0]
[null,null,null,null,null,null,null,null,null,null,null,null,null,{"$f":"IF(OR(O11<1,O12<1,O13<1),1,2)","v":1}]
[]
[null,null,null,null,null,null,null,"Kurs waluty na dzień złożenia wniosku*"]
[null,null,null,null,null,null,null,"*kurs waluty dostępny na stronie www.nbp.pl"]
[]
[]
[null,null,null,null,null,null,null,"Średniomiesięczny dochód netto",null,null,null,null,null,{"$f":"IF(O16=\"\",\"BRAK DANYCH\",IF(N14=1,\"BRAK DANYCH\",SUM(O11,O12,O13)*O16*0.8/3))","v":"BRAK DANYCH"}]

{"sheet":"zmiana_formy_opod","index":6,"n_rows":35,"n_cols":19,"rows_kept":35,"cut":false,"hidden":false,"merged":[[23,11,24,15],[25,2,25,6],[25,11,25,15],[25,7,25,8],[28,15,32,17],[28,11,30,13],[28,5,30,10],[31,11,32,13],[31,5,32,10],[9,2,9,4],[9,5,9,7],[12,11,12,15],[13,14,13,15],[14,14,14,15],[3,3,5,17],[7,2,7,4],[7,5,7,7],[24,2,24,6],[24,7,24,8],[11,2,11,6],[18,2,23,6],[13,2,17,6],[18,7,23,8],[13,7,17,8],[11,7,11,8],[12,7,12,8],[12,2,12,6],[21,16,21,17],[22,16,22,17],[11,11,11,15],[19,16,19,17],[25,16,25,17],[23,16,24,17],[11,16,11,17],[12,16,12,17],[13,16,13,17],[14,16,14,17],[15,16,15,17],[7,15,7,16],[8,15,8,16],[7,13,8,14],[21,14,21,15],[22,14,22,15],[13,11,22,13],[15,14,15,15],[16,14,16,15],[17,14,17,15],[18,14,18,15],[19,14,19,15],[20,14,20,15],[20,16,20,17],[16,16,16,17],[17,16,17,17],[18,16,18,17]]}
[]
[]
[null,{"$f":"IF(F8=\"Rodzaj zmiany\",1,0)","v":1}]
[null,{"$f":"IF(OR(F8=\"Rodzaj zmiany\",F10=\"Wybierz forme opodatkowania\",(H13+Q13)<6,H13<1,Q13<1),1,0)","v":1},null,"Kalkulator - zmiana formy opodatkowania"]
[null,{"$f":"IF(F10=\"Wybierz forme opodatkowania\",1,0)","v":1}]
[null,{"$f":"IF(F8=\"KPiR -> Ryczałt\",1,0)","v":0},"k-r"]
[null,{"$f":"IF(F8=\"Ryczałt -> KPiR\",1,0)","v":0},"r-k"]
[null,null,"Wybierz wariant zmiany",null,null,"Rodzaj zmiany",null,null,null,null,null,null,null,"dochód netto ryczałt",null,{"$f":"((Q14-(Q14*$O$14))*$S$14)+(Q15-(Q15*$O$15))*$S$15+(Q16-(Q16*$O$15))*$S$16+(Q17-(Q17*$O$17))*$S$17+(Q18-(Q18*$O$18))*$S$18+(Q19-(Q19*$O$19))*$S$19+(Q20-(Q20*$O$20))*$S$20+(Q21-(Q21*$O$21))*$S$21+(Q22-(Q22*$O$22))*$S$22+(Q23-(Q23*$O$23))*$S$23","v":0}]
[]
[null,null,"Forma opodatkowania:",null,null,"Wybierz forme opodatkowania"]
[]
[null,null,"KPiR",null,null,null,null,{"$f":"IF(B7=1,\"ROK OBECNY\",\"ROK POPRZEDNI\")","v":"ROK POPRZEDNI"},null,null,null,"RYCZAŁT",null,null,null,null,{"$f":"IF(B7=1,\"ROK POPRZEDNI\",\"ROK OBECNY\")","v":"ROK OBECNY"}]
[null,null,"Liczba miesięcy",null,null,null,null,0,null,null,null,"Liczba miesięcy",null,null,null,null,0,null,"rentowność"]
[null,null,"Przychód:\nPIT za poprzedni rok: rubryka Przychód\n\nKPIR: suma przychodu z kolumn Wartość sprzedanych towarów i usług + Pozostałe przychody",null,null,null,null,0,null,null,null,"kwota przychodu",null,null,0.03,null,0,null,0.2]
[null,null,null,null,null,null,null,null,null,null,null,null,null,null,5.5E-2,null,0,null,0.2]
[null,null,null,null,null,null,null,null,null,null,null,null,null,null,"5,50%*",null,0,null,0.35]
[null,null,null,null,null,null,null,null,null,null,null,null,null,null,8.5000000000000006E-2,null,0,null,0.35]
[null,null,null,null,null,null,null,null,null,null,null,null,null,null,0.1,null,0,null,0.2]
[null,null,"Koszty łącznie:\nPIT za poprzedni rok: rubryka Koszty uzyskania przychodów\n\nKPIR: suma kolumn Zakup towarów handlowych i materiałów wg cen zakupu + Koszty uboczne zakupu + Wydatki razem(koszty, w tym wynagrodzenia w gotówce i naturze, pozostałe wydatki) ",null,null,null,null,0,null,null,null,null,null,null,0.12,null,0,null,0.5]
[null,null,null,null,null,null,null,null,null,null,null,null,null,null,0.125,null,0,null,0.35]
[null,null,null,null,null,null,null,null,null,null,null,null,null,null,0.14000000000000001,null,0,null,0.5]
[null,null,null,null,null,null,null,null,null,null,null,null,null,null,0.15,null,0,null,0.35]
[null,null,null,null,null,null,null,null,null,null,null,null,null,null,0.17,null,0,null,0.5]
[null,null,null,null,null,null,null,null,null,null,null,"Przychód łącznie",null,null,null,null,{"$f":"IF(B4=1,\"BRAK DANYCH\",SUM(Q14:R23))","v":"BRAK DANYCH"}]
[null,null,"Dochód brutto",null,null,null,null,{"$f":"IF(B4=1,\"BRAK DANYCH\",H14-H19)","v":"BRAK DANYCH"}]
[null,null,"Średniomiesięczny dochód netto z KPiR",null,null,null,null,{"$f":"IFERROR(IF(C29=1,C28/H13,IF(C30=1,C27/H13,\"BRAK DANYCH\")),\"BRAK DANYCH\")","v":"BRAK DANYCH"},null,null,null,"Średniomiesięczny dochód netto ryczałt",null,null,null,null,{"$f":"IF(B4=1,\"BRAK DANYCH\",P8/Q13)","v":"BRAK DANYCH"}]
[null,"doch liniowy",{"$f":"IF(H25>0,H25*0.81,H25)","v":{"$error":"#VALUE!"}}]
[null,"doch ogolne",{"$f":"IF(H25<=Arkusz2!C18,H25-MAX(H25*0.18-Arkusz2!C17,0),H25-(Arkusz2!C19+(H25-Arkusz2!C18)*0.32))","v":{"$error":"#VALUE!"}},"doch kpir",{"$f":"IF(F10=\"Podatek liniowy\",C27,C28)","v":{"$error":"#VALUE!"}}]
[null,"ogolne",{"$f":"IF(F10=\"Zasady ogólne\",1,2)","v":2},null,null,"Średniomiesięczny dochód netto",null,null,null,null,null,{"$f":"IFERROR((P8+E28)/(H13+Q13),\"BRAK DANYCH\")","v":"BRAK DANYCH"},null,null,null,{"$f":"IF(L29=\"BRAK DANYCH\",\"\",IF(H13+Q13<6,\"\",IF(H13+Q13<9,\"W celu potencjalnego zwiększenia maksymalnej kwoty - należy wydłużyć okres dokumentowanego dochodu do min. 9 m-cy\",\"\")))","v":""}]
[null,"liniowy",{"$f":"IF(F10=\"Podatek liniowy\",1,2)","v":2}]
[]
[null,null,null,null,null,"Maksymalna kwota dla wybranego okresu udokumentowania dochodu",null,null,null,null,null,{"$f":"IF(L29=\"BRAK DANYCH\",\"BRAK DANYCH\",IF(H13+Q13<9,IF(J35>50000,50000,J35),IF(H13+Q13<9,50000,\"Brak ograniczenia\")))","v":"BRAK DANYCH"}]
[]
[null,null,null,null,null,null,{"$f":"IF(L32=\"Brak ograniczenia\",1,0)","v":0},{"$f":"IF(H13+Q13<6,1,0)","v":1},{"$f":"IF(OR(G34=1,H34=1),1,0)","v":1}]
[null,null,null,null,null,null,null,null,null,{"$f":"IF(L29=\"BRAK DANYCH\",\"BRAK DANYCH\",L29*6)","v":"BRAK DANYCH"}]

{"sheet":"Arkusz2","index":7,"n_rows":29,"n_cols":8,"rows_kept":29,"cut":false,"hidden":false,"merged":[]}
[]
[]
[]
[null,"Wybierz forme opodatkowania",null,"Wybierz okres rozliczania",null,"Wybierz rodzaj działalności","podatek","rentowność"]
[null,"Podatek liniowy",null,"Miesięczny",null,"Handel – stawka podatku 3%",0.03,0.2]
[null,"Zasady ogólne",null,"Kwartalny",null,"Pośrednictwo handlowe  – stawka podatku 17%",0.17,0.2]
[null,null,null,null,null,"Produkcja i działalność mieszana – stawka podatku 5,5%",5.5E-2,0.2]
[null,null,null,null,null,"Sprzedaż środków trwałych – stawka podatku 10%",0.1,0.2]
[null,null,null,null,null,"Usługi – stawka podatku 8,5% ",8.5000000000000006E-2,0.35]
[null,null,null,null,null,"Wolne zawody – stawka podatku 20%",0.2,0.2]
[]
[null,"Wybierz sposób wyliczenia","Suma rachunków/ faktur"]
[null,"Liczba hektarów"]
[null,"Suma rachunków/ faktur"]
[]
[]
[null,"kwota zmniejszająca podatek",556.02]
[null,"wartość przychodu, po przekroczeniu którego obowiązuje drugi próg podatkowy",85528]
[null,"podatek od kwoty 85528",14839.02]
[]
[]
[]
[null,"Wariant wyliczenia"]
[null,"Ilość hektarów"]
[null,"Suma faktur"]
[]
[null,"Rodzaj zmiany"]
[null,"KPIR -> Ryczałt"]
[null,"Ryczałt -> KPiR"]